[Event "Titled Tuesday Blitz August 22 Late 2023"]
[White "Titichoca Daza, Daniel"]
[Black "Cuenca Jimenez, Jose Fernando"]
[WhiteFideId "3309550"]
[BlackFideId "2255570"]
[WhiteElo "2423"]
[BlackElo "2700"]
[Result "1-0"]
[Round "2"]
[TimeControl "180+1"]
[Date "2023.08.22"]
[WhiteClock "0:00:11"]
[BlackClock "0:00:00"]
[Board "83"]

1. e4 {[%clk 0:03:00]}  c5 {[%clk 0:02:59]} 2. Nc3 {[%clk 0:02:57]}  Nc6 {[%clk 0:02:58]} 3. Nf3 {[%clk 0:02:57]}  e5 {[%clk 0:02:57]} 4. Bc4 {[%clk 0:02:57]}  g6 {[%clk 0:02:57]} 5. d3 {[%clk 0:02:49]}  h6 {[%clk 0:02:57]} 6. h4 {[%clk 0:02:48]}  d6 {[%clk 0:02:54]} 7. h5 {[%clk 0:02:48]}  g5 {[%clk 0:02:54]} 8. a3 {[%clk 0:02:45]}  Bg7 {[%clk 0:02:52]} 9. Nh2 {[%clk 0:02:45]}  Nge7 {[%clk 0:02:44]} 10. Nf1 {[%clk 0:02:44]}  O-O {[%clk 0:02:39]} 11. Ne3 {[%clk 0:02:45]}  Nd4 {[%clk 0:02:31]} 12. Ncd5 {[%clk 0:02:40]}  Kh8 {[%clk 0:02:21]} 13. c3 {[%clk 0:02:39]}  Ne6 {[%clk 0:02:12]} 14. g3 {[%clk 0:02:25]}  Rb8 {[%clk 0:01:54]} 15. a4 {[%clk 0:02:22]}  b6 {[%clk 0:01:53]} 16. Qb3 {[%clk 0:01:55]}  a6 {[%clk 0:01:48]} 17. Qd1 {[%clk 0:01:49]}  Nxd5 {[%clk 0:01:42]} 18. Bxd5 {[%clk 0:01:44]}  Nc7 {[%clk 0:01:40]} 19. Bb3 {[%clk 0:01:44]}  f5 {[%clk 0:01:29]} 20. f3 {[%clk 0:01:29]}  f4 {[%clk 0:01:24]} 21. gxf4 {[%clk 0:01:24]}  exf4 {[%clk 0:01:25]} 22. Nd5 {[%clk 0:01:15]}  Nxd5 {[%clk 0:01:16]} 23. Bxd5 {[%clk 0:01:16]}  Bd7 {[%clk 0:01:15]} 24. Bd2 {[%clk 0:01:02]}  Qe7 {[%clk 0:01:12]} 25. Qb3 {[%clk 0:00:48]}  Bf6 {[%clk 0:01:05]} 26. O-O-O {[%clk 0:00:21]}  b5 {[%clk 0:01:04]} 27. a5 {[%clk 0:00:20]}  b4 {[%clk 0:01:02]} 28. cxb4 {[%clk 0:00:19]}  cxb4 {[%clk 0:00:57]} 29. Kb1 {[%clk 0:00:19]}  Be5 {[%clk 0:00:46]} 30. d4 {[%clk 0:00:19]}  Bxd4 {[%clk 0:00:42]} 31. Bxb4 {[%clk 0:00:18]}  Be5 {[%clk 0:00:40]} 32. Qa3 {[%clk 0:00:18]}  g4 {[%clk 0:00:36]} 33. Bc4 {[%clk 0:00:18]}  Rf6 {[%clk 0:00:26]} 34. Bxa6 {[%clk 0:00:16]}  gxf3 {[%clk 0:00:23]} 35. Bc4 {[%clk 0:00:16]}  Qd8 {[%clk 0:00:19]} 36. Rhg1 {[%clk 0:00:16]}  f2 {[%clk 0:00:18]} 37. Rg2 {[%clk 0:00:15]}  Qc7 {[%clk 0:00:18]} 38. Bd5 {[%clk 0:00:15]}  Qa7 {[%clk 0:00:15]} 39. Rf1 {[%clk 0:00:14]}  Bd4 {[%clk 0:00:12]} 40. Bc3 {[%clk 0:00:12]}  Bh3 {[%clk 0:00:05]} 41. Rgxf2 {[%clk 0:00:11]}  Bxf1 {[%clk 0:00:04]} 42. Rxf1 {[%clk 0:00:11]}  Bxc3 {[%clk 0:00:04]} 43. Qxc3 {[%clk 0:00:11]}  Qe7 {[%clk 0:00:05]} 44. Rxf4 {[%clk 0:00:11]}  Rf8 {[%clk 0:00:03]} 45. Rg4 {[%clk 0:00:12]}  Qe5 {[%clk 0:00:02]} 46. Qh3 {[%clk 0:00:11]}  Rb8 {[%clk 0:00:01]} 47. Rg2 {[%clk 0:00:11]}  Qd4 {[%clk 0:00:00]} 48. Qg4 {[%clk 0:00:11]} 1-0


[Site "https://www.chess.com"]

[Event "Titled Tuesday Blitz August 22 Late 2023"]
[White "Hjartarson, Johann"]
[Black "petr577"]
[WhiteFideId "2300044"]
[WhiteElo "2694"]
[BlackElo "2391"]
[Result "1-0"]
[Round "2"]
[TimeControl "180+1"]
[Date "2023.08.22"]
[WhiteClock "0:01:05"]
[BlackClock "0:00:04"]
[Board "85"]

1. c4 {[%clk 0:03:00]}  c5 {[%clk 0:02:59]} 2. g3 {[%clk 0:03:00]}  Nc6 {[%clk 0:03:00]} 3. Bg2 {[%clk 0:03:00]}  e5 {[%clk 0:03:00]} 4. Nc3 {[%clk 0:02:58]}  d6 {[%clk 0:03:01]} 5. Nf3 {[%clk 0:02:58]}  Be6 {[%clk 0:03:01]} 6. d3 {[%clk 0:02:54]}  Be7 {[%clk 0:03:02]} 7. O-O {[%clk 0:02:54]}  Qd7 {[%clk 0:03:02]} 8. a3 {[%clk 0:02:50]}  Bh3 {[%clk 0:03:00]} 9. b4 {[%clk 0:02:44]}  cxb4 {[%clk 0:02:38]} 10. axb4 {[%clk 0:02:44]}  Bxg2 {[%clk 0:02:38]} 11. Kxg2 {[%clk 0:02:43]}  Nxb4 {[%clk 0:02:38]} 12. Ba3 {[%clk 0:02:41]}  Nc6 {[%clk 0:02:36]} 13. Qa4 {[%clk 0:02:39]}  Nf6 {[%clk 0:02:31]} 14. Rfb1 {[%clk 0:02:36]}  O-O {[%clk 0:01:38]} 15. Nd5 {[%clk 0:02:34]}  Rfc8 {[%clk 0:01:34]} 16. Qb5 {[%clk 0:02:28]}  b6 {[%clk 0:01:28]} 17. Nxf6+ {[%clk 0:02:17]}  Bxf6 {[%clk 0:01:27]} 18. e4 {[%clk 0:02:16]}  Rc7 {[%clk 0:01:12]} 19. h4 {[%clk 0:02:11]}  h6 {[%clk 0:01:11]} 20. Bc1 {[%clk 0:02:04]}  Nd4 {[%clk 0:00:32]} 21. Nxd4 {[%clk 0:02:01]}  exd4 {[%clk 0:00:33]} 22. Qxd7 {[%clk 0:02:00]}  Rxd7 {[%clk 0:00:33]} 23. Rxb6 {[%clk 0:02:00]}  h5 {[%clk 0:00:20]} 24. Rba6 {[%clk 0:01:54]}  g6 {[%clk 0:00:19]} 25. c5 {[%clk 0:01:49]}  Be7 {[%clk 0:00:16]} 26. c6 {[%clk 0:01:46]}  Rc7 {[%clk 0:00:16]} 27. Bb2 {[%clk 0:01:43]}  Bf6 {[%clk 0:00:14]} 28. R1a4 {[%clk 0:01:41]}  Rac8 {[%clk 0:00:14]} 29. Bxd4 {[%clk 0:01:38]}  Bxd4 {[%clk 0:00:15]} 30. Rxd4 {[%clk 0:01:38]}  Rxc6 {[%clk 0:00:16]} 31. Rxd6 {[%clk 0:01:35]}  Rxd6 {[%clk 0:00:11]} 32. Rxd6 {[%clk 0:01:34]}  Ra8 {[%clk 0:00:12]} 33. Ra6 {[%clk 0:01:33]}  Kf8 {[%clk 0:00:13]} 34. Kf3 {[%clk 0:01:26]}  Ke7 {[%clk 0:00:14]} 35. e5 {[%clk 0:01:26]}  Kd7 {[%clk 0:00:11]} 36. Ke4 {[%clk 0:01:24]}  Kc7 {[%clk 0:00:11]} 37. d4 {[%clk 0:01:23]}  Kb7 {[%clk 0:00:11]} 38. Ra3 {[%clk 0:01:23]}  a5 {[%clk 0:00:11]} 39. d5 {[%clk 0:01:13]}  Kb6 {[%clk 0:00:12]} 40. e6 {[%clk 0:01:10]}  fxe6 {[%clk 0:00:13]} 41. dxe6 {[%clk 0:01:10]}  Kb5 {[%clk 0:00:13]} 42. Ke5 {[%clk 0:01:10]}  Kb4 {[%clk 0:00:14]} 43. Ra1 {[%clk 0:01:09]}  a4 {[%clk 0:00:13]} 44. e7 {[%clk 0:01:09]}  Kb3 {[%clk 0:00:12]} 45. Kf6 {[%clk 0:01:07]}  a3 {[%clk 0:00:12]} 46. Kf7 {[%clk 0:01:05]}  Ra7 {[%clk 0:00:04]} 47. Kf8 {[%clk 0:01:05]} 1-0


[Site "https://www.chess.com"]

[Event "Titled Tuesday Blitz August 22 Late 2023"]
[White "Senft, Sean"]
[Black "Pert, Richard G"]
[WhiteFideId "2044960"]
[BlackFideId "404748"]
[WhiteElo "2342"]
[BlackElo "2688"]
[Result "1/2-1/2"]
[Round "2"]
[TimeControl "180+1"]
[Date "2023.08.22"]
[WhiteClock "0:00:06"]
[BlackClock "0:00:22"]
[Board "89"]

1. d4 {[%clk 0:03:00]}  e6 {[%clk 0:02:59]} 2. c4 {[%clk 0:03:01]}  f5 {[%clk 0:02:59]} 3. Nc3 {[%clk 0:03:01]}  Nf6 {[%clk 0:03:00]} 4. Nf3 {[%clk 0:03:01]}  Bb4 {[%clk 0:02:59]} 5. Bd2 {[%clk 0:02:57]}  O-O {[%clk 0:02:58]} 6. g3 {[%clk 0:02:57]}  c5 {[%clk 0:02:49]} 7. Bg2 {[%clk 0:02:55]}  cxd4 {[%clk 0:02:42]} 8. Nxd4 {[%clk 0:02:56]}  Nc6 {[%clk 0:02:42]} 9. Nxc6 {[%clk 0:02:52]}  dxc6 {[%clk 0:02:39]} 10. O-O {[%clk 0:02:52]}  e5 {[%clk 0:02:36]} 11. Qb3 {[%clk 0:02:35]}  a5 {[%clk 0:02:12]} 12. Rad1 {[%clk 0:02:32]}  Qe7 {[%clk 0:02:11]} 13. a3 {[%clk 0:02:25]}  Bc5 {[%clk 0:02:08]} 14. Na4 {[%clk 0:02:18]}  Ba7 {[%clk 0:02:05]} 15. Nb6 {[%clk 0:02:07]}  Bxb6 {[%clk 0:02:02]} 16. Qxb6 {[%clk 0:02:06]}  Be6 {[%clk 0:02:02]} 17. Bxa5 {[%clk 0:01:48]}  Bxc4 {[%clk 0:02:01]} 18. Bb4 {[%clk 0:01:44]}  Qf7 {[%clk 0:01:40]} 19. Bxf8 {[%clk 0:01:32]}  Rxf8 {[%clk 0:01:39]} 20. Rfe1 {[%clk 0:01:28]}  e4 {[%clk 0:01:38]} 21. Rd8 {[%clk 0:01:15]}  h5 {[%clk 0:01:29]} 22. Rxf8+ {[%clk 0:01:13]}  Kxf8 {[%clk 0:01:28]} 23. Qd8+ {[%clk 0:01:11]}  Ne8 {[%clk 0:01:27]} 24. e3 {[%clk 0:01:06]}  Bd5 {[%clk 0:01:24]} 25. h4 {[%clk 0:00:47]}  Kg8 {[%clk 0:01:24]} 26. Bh3 {[%clk 0:00:46]}  Kh7 {[%clk 0:01:22]} 27. Qg5 {[%clk 0:00:37]}  Nd6 {[%clk 0:01:12]} 28. Bf1 {[%clk 0:00:33]}  Qe8 {[%clk 0:01:01]} 29. Rd1 {[%clk 0:00:30]}  Qf7 {[%clk 0:00:49]} 30. Be2 {[%clk 0:00:28]}  g6 {[%clk 0:00:49]} 31. Qf4 {[%clk 0:00:20]}  Qe6 {[%clk 0:00:46]} 32. Rc1 {[%clk 0:00:15]}  Kg7 {[%clk 0:00:40]} 33. Qg5 {[%clk 0:00:15]}  Nf7 {[%clk 0:00:37]} 34. Qf4 {[%clk 0:00:15]}  Ne5 {[%clk 0:00:35]} 35. Rd1 {[%clk 0:00:13]}  b5 {[%clk 0:00:31]} 36. Qg5 {[%clk 0:00:12]}  Nf7 {[%clk 0:00:30]} 37. Qf4 {[%clk 0:00:12]}  Ne5 {[%clk 0:00:30]} 38. Rc1 {[%clk 0:00:10]}  Kh7 {[%clk 0:00:26]} 39. Qg5 {[%clk 0:00:09]}  Nf7 {[%clk 0:00:23]} 40. Qf4 {[%clk 0:00:10]}  Ne5 {[%clk 0:00:23]} 41. Rd1 {[%clk 0:00:06]}  Kg7 {[%clk 0:00:22]} 1/2-1/2


[Site "https://www.chess.com"]

[Event "Titled Tuesday Blitz August 22 Late 2023"]
[White "Olsen, Filip Boe"]
[Black "Davidson, Kevin"]
[WhiteFideId "1440640"]
[BlackFideId "2056810"]
[WhiteElo "2688"]
[BlackElo "2340"]
[Result "1-0"]
[Round "2"]
[TimeControl "180+1"]
[Date "2023.08.22"]
[WhiteClock "0:00:45"]
[BlackClock "0:00:00"]
[Board "90"]

1. c4 {[%clk 0:02:59]}  Nf6 {[%clk 0:02:36]} 2. Nc3 {[%clk 0:02:55]}  g6 {[%clk 0:02:17]} 3. e4 {[%clk 0:02:49]}  d6 {[%clk 0:02:05]} 4. d3 {[%clk 0:02:36]}  Bg7 {[%clk 0:01:55]} 5. Be2 {[%clk 0:02:35]}  O-O {[%clk 0:01:45]} 6. Be3 {[%clk 0:02:35]}  c5 {[%clk 0:01:23]} 7. h3 {[%clk 0:02:30]}  Nc6 {[%clk 0:01:21]} 8. Qd2 {[%clk 0:02:27]}  a6 {[%clk 0:01:19]} 9. f4 {[%clk 0:02:18]}  Rb8 {[%clk 0:01:18]} 10. a4 {[%clk 0:02:13]}  Ne8 {[%clk 0:01:16]} 11. Nf3 {[%clk 0:02:07]}  Nc7 {[%clk 0:01:14]} 12. O-O {[%clk 0:02:03]}  b5 {[%clk 0:01:13]} 13. axb5 {[%clk 0:02:02]}  axb5 {[%clk 0:01:14]} 14. cxb5 {[%clk 0:01:38]}  Nxb5 {[%clk 0:01:13]} 15. Nxb5 {[%clk 0:01:38]}  Rxb5 {[%clk 0:01:14]} 16. Ra2 {[%clk 0:01:34]}  Be6 {[%clk 0:01:04]} 17. d4 {[%clk 0:01:18]}  cxd4 {[%clk 0:00:54]} 18. Nxd4 {[%clk 0:01:17]}  Nxd4 {[%clk 0:00:49]} 19. Bxd4 {[%clk 0:01:16]}  Bxa2 {[%clk 0:00:39]} 20. Bxb5 {[%clk 0:01:14]}  Bxd4+ {[%clk 0:00:30]} 21. Qxd4 {[%clk 0:01:14]}  Qa5 {[%clk 0:00:31]} 22. Qa4 {[%clk 0:01:07]}  Qxa4 {[%clk 0:00:25]} 23. Bxa4 {[%clk 0:01:08]}  Rb8 {[%clk 0:00:25]} 24. b3 {[%clk 0:01:05]}  Rb7 {[%clk 0:00:12]} 25. Rf3 {[%clk 0:01:03]}  Bb1 {[%clk 0:00:08]} 26. Re3 {[%clk 0:01:00]}  Bc2 {[%clk 0:00:07]} 27. Kf2 {[%clk 0:00:58]}  Rb4 {[%clk 0:00:05]} 28. Kf3 {[%clk 0:00:57]}  Kg7 {[%clk 0:00:04]} 29. e5 {[%clk 0:00:53]}  dxe5 {[%clk 0:00:04]} 30. fxe5 {[%clk 0:00:50]}  Bf5 {[%clk 0:00:03]} 31. Bc6 {[%clk 0:00:46]}  Be6 {[%clk 0:00:03]} 32. Ba4 {[%clk 0:00:46]}  h5 {[%clk 0:00:02]} 33. Rd3 {[%clk 0:00:44]}  h4 {[%clk 0:00:02]} 34. Ke3 {[%clk 0:00:44]}  g5 {[%clk 0:00:02]} 35. Rd4 {[%clk 0:00:44]}  Rxd4 {[%clk 0:00:01]} 36. Kxd4 {[%clk 0:00:45]}  Kg6 {[%clk 0:00:01]} 37. b4 {[%clk 0:00:45]}  Kf5 {[%clk 0:00:01]} 38. b5 {[%clk 0:00:45]}  Bc8 {[%clk 0:00:00]} 39. Bd1 {[%clk 0:00:45]} 1-0


[Site "https://www.chess.com"]

[Event "Titled Tuesday Blitz August 22 Late 2023"]
[White "Rastbod, Ali"]
[Black "Peatman, Carter"]
[WhiteFideId "12567477"]
[BlackFideId "2096480"]
[WhiteElo "2685"]
[BlackElo "2338"]
[Result "1-0"]
[Round "2"]
[TimeControl "180+1"]
[Date "2023.08.22"]
[WhiteClock "0:00:06"]
[BlackClock "0:00:02"]
[Board "91"]

1. e4 {[%clk 0:02:17]}  e5 {[%clk 0:02:57]} 2. Nc3 {[%clk 0:02:16]}  Bc5 {[%clk 0:02:51]} 3. Nf3 {[%clk 0:02:07]}  d6 {[%clk 0:02:51]} 4. Bc4 {[%clk 0:02:04]}  Nf6 {[%clk 0:02:46]} 5. h3 {[%clk 0:02:02]}  Nc6 {[%clk 0:02:44]} 6. Na4 {[%clk 0:01:57]}  Bb6 {[%clk 0:02:40]} 7. Nxb6 {[%clk 0:01:57]}  axb6 {[%clk 0:02:41]} 8. d3 {[%clk 0:01:56]}  Be6 {[%clk 0:02:34]} 9. Qe2 {[%clk 0:01:49]}  h6 {[%clk 0:02:19]} 10. O-O {[%clk 0:01:35]}  Bxc4 {[%clk 0:02:06]} 11. dxc4 {[%clk 0:01:33]}  Qe7 {[%clk 0:02:04]} 12. c3 {[%clk 0:01:20]}  Nh5 {[%clk 0:02:02]} 13. b4 {[%clk 0:01:09]}  Nf4 {[%clk 0:01:57]} 14. Bxf4 {[%clk 0:01:06]}  exf4 {[%clk 0:01:58]} 15. Nd4 {[%clk 0:01:02]}  Ne5 {[%clk 0:01:38]} 16. a4 {[%clk 0:00:41]}  g5 {[%clk 0:01:28]} 17. Rfe1 {[%clk 0:00:23]}  h5 {[%clk 0:01:26]} 18. f3 {[%clk 0:00:22]}  g4 {[%clk 0:01:21]} 19. hxg4 {[%clk 0:00:17]}  hxg4 {[%clk 0:01:18]} 20. fxg4 {[%clk 0:00:18]}  Qh4 {[%clk 0:01:15]} 21. Nf5 {[%clk 0:00:15]}  Qh2+ {[%clk 0:00:39]} 22. Kf2 {[%clk 0:00:11]}  f3 {[%clk 0:00:40]} 23. Qf1 {[%clk 0:00:09]}  Nxg4+ {[%clk 0:00:23]} 24. Kxf3 {[%clk 0:00:08]}  Ne5+ {[%clk 0:00:23]} 25. Ke2 {[%clk 0:00:09]}  Qh5+ {[%clk 0:00:17]} 26. Kd2 {[%clk 0:00:08]}  Qg5+ {[%clk 0:00:17]} 27. Kc2 {[%clk 0:00:08]}  Rg8 {[%clk 0:00:17]} 28. Re2 {[%clk 0:00:08]}  Ng4 {[%clk 0:00:15]} 29. Qf3 {[%clk 0:00:07]}  Ne5 {[%clk 0:00:15]} 30. Qh3 {[%clk 0:00:07]}  Qg4 {[%clk 0:00:11]} 31. Qxg4 {[%clk 0:00:06]}  Rxg4 {[%clk 0:00:11]} 32. Rh1 {[%clk 0:00:04]}  O-O-O {[%clk 0:00:12]} 33. Ne7+ {[%clk 0:00:04]}  Kd7 {[%clk 0:00:12]} 34. Nd5 {[%clk 0:00:05]}  Rg6 {[%clk 0:00:07]} 35. Rh7 {[%clk 0:00:03]}  Rdg8 {[%clk 0:00:07]} 36. Rh2 {[%clk 0:00:03]}  R8g7 {[%clk 0:00:07]} 37. Nf4 {[%clk 0:00:03]}  Rg4 {[%clk 0:00:06]} 38. Nd5 {[%clk 0:00:04]}  R4g6 {[%clk 0:00:06]} 39. Ne3 {[%clk 0:00:04]}  Rg3 {[%clk 0:00:05]} 40. Nf5 {[%clk 0:00:05]}  Nxc4 {[%clk 0:00:04]} 41. Nxg7 {[%clk 0:00:04]}  Rxg7 {[%clk 0:00:04]} 42. Kb3 {[%clk 0:00:05]}  Ne5 {[%clk 0:00:03]} 43. Rh5 {[%clk 0:00:05]}  Rg3 {[%clk 0:00:03]} 44. Rf5 {[%clk 0:00:05]}  Rd3 {[%clk 0:00:02]} 45. Rf1 {[%clk 0:00:03]}  Ke6 {[%clk 0:00:02]} 46. Rf5 {[%clk 0:00:03]}  Rg3 {[%clk 0:00:02]} 47. Ref2 {[%clk 0:00:04]}  Ke7 {[%clk 0:00:02]} 48. Rh5 {[%clk 0:00:04]}  Rd3 {[%clk 0:00:01]} 49. Rh8 {[%clk 0:00:04]}  Rg3 {[%clk 0:00:01]} 50. Rb8 {[%clk 0:00:05]}  Kd7 {[%clk 0:00:02]} 51. Rxb7 {[%clk 0:00:05]}  Nd3 {[%clk 0:00:02]} 52. Rxf7+ {[%clk 0:00:05]}  Kc6 {[%clk 0:00:02]} 53. Rfxc7# {[%clk 0:00:06]} 1-0


[Site "https://www.chess.com"]

[Event "Titled Tuesday Blitz August 22 Late 2023"]
[White "Antonio, Jorge Carlos"]
[Black "Annaberdiyev, Meylis"]
[WhiteFideId "113190"]
[BlackFideId "14000563"]
[WhiteElo "2311"]
[BlackElo "2673"]
[Result "0-1"]
[Round "2"]
[TimeControl "180+1"]
[Date "2023.08.22"]
[WhiteClock "0:01:42"]
[BlackClock "0:00:24"]
[Board "94"]

1. d4 {[%clk 0:02:55]}  Nf6 {[%clk 0:02:56]} 2. Nf3 {[%clk 0:02:52]}  g6 {[%clk 0:02:56]} 3. c4 {[%clk 0:02:52]}  Bg7 {[%clk 0:02:56]} 4. Nc3 {[%clk 0:02:52]}  O-O {[%clk 0:02:57]} 5. e4 {[%clk 0:02:52]}  d6 {[%clk 0:02:57]} 6. Be2 {[%clk 0:02:52]}  e5 {[%clk 0:02:57]} 7. O-O {[%clk 0:02:51]}  exd4 {[%clk 0:02:58]} 8. Nxd4 {[%clk 0:02:50]}  Re8 {[%clk 0:02:59]} 9. f3 {[%clk 0:02:50]}  c6 {[%clk 0:03:00]} 10. Nc2 {[%clk 0:02:47]}  Na6 {[%clk 0:02:59]} 11. a3 {[%clk 0:02:47]}  Nh5 {[%clk 0:02:25]} 12. g4 {[%clk 0:02:43]}  Nf6 {[%clk 0:02:24]} 13. Be3 {[%clk 0:02:43]}  h5 {[%clk 0:02:04]} 14. h3 {[%clk 0:02:39]}  Nh7 {[%clk 0:01:59]} 15. Kg2 {[%clk 0:02:38]}  Nc5 {[%clk 0:01:45]} 16. Nb4 {[%clk 0:02:27]}  Be6 {[%clk 0:01:30]} 17. Kf2 {[%clk 0:02:16]}  a5 {[%clk 0:01:03]} 18. Nc2 {[%clk 0:02:09]}  Be5 {[%clk 0:00:25]} 19. Nd4 {[%clk 0:02:03]}  Qh4+ {[%clk 0:00:23]} 20. Kg2 {[%clk 0:01:44]}  Qg3+ {[%clk 0:00:23]} 21. Kh1 {[%clk 0:01:42]}  Qh2# {[%clk 0:00:24]} 0-1


[Site "https://www.chess.com"]

[Event "Titled Tuesday Blitz August 22 Late 2023"]
[White "Garcia-Castany Musellas, Gal.la"]
[Black "Piesik, Piotr"]
[WhiteFideId "2241803"]
[BlackFideId "1136194"]
[WhiteElo "2268"]
[BlackElo "2661"]
[Result "0-1"]
[Round "2"]
[TimeControl "180+1"]
[Date "2023.08.22"]
[WhiteClock "0:01:48"]
[BlackClock "0:02:20"]
[Board "97"]

1. Nf3 {[%clk 0:03:00]}  g6 {[%clk 0:03:00]} 2. e4 {[%clk 0:02:59]}  Bg7 {[%clk 0:03:00]} 3. d4 {[%clk 0:02:59]}  c6 {[%clk 0:03:00]} 4. h3 {[%clk 0:02:58]}  d6 {[%clk 0:03:00]} 5. Be2 {[%clk 0:02:55]}  Nd7 {[%clk 0:03:00]} 6. Nc3 {[%clk 0:02:55]}  Ngf6 {[%clk 0:03:00]} 7. a4 {[%clk 0:02:56]}  e5 {[%clk 0:03:00]} 8. Be3 {[%clk 0:02:53]}  O-O {[%clk 0:02:59]} 9. O-O {[%clk 0:02:53]}  Re8 {[%clk 0:02:58]} 10. dxe5 {[%clk 0:02:51]}  dxe5 {[%clk 0:02:58]} 11. a5 {[%clk 0:02:41]}  Qe7 {[%clk 0:02:57]} 12. Nd2 {[%clk 0:02:39]}  Nc5 {[%clk 0:02:56]} 13. f3 {[%clk 0:02:39]}  Nh5 {[%clk 0:02:52]} 14. Qe1 {[%clk 0:02:27]}  Ne6 {[%clk 0:02:49]} 15. Bc4 {[%clk 0:02:13]}  Nd4 {[%clk 0:02:47]} 16. Rc1 {[%clk 0:02:08]}  Nf4 {[%clk 0:02:32]} 17. Nb3 {[%clk 0:01:56]}  Qg5 {[%clk 0:02:21]} 18. Kh2 {[%clk 0:01:48]}  Qxg2# {[%clk 0:02:20]} 0-1


[Site "https://www.chess.com"]

[Event "Titled Tuesday Blitz August 22 Late 2023"]
[White "Kleiman, Jake"]
[Black "Akhayan, Ruben"]
[WhiteFideId "2020041"]
[BlackFideId "204439"]
[WhiteElo "2661"]
[BlackElo "2260"]
[Result "1-0"]
[Round "2"]
[TimeControl "180+1"]
[Date "2023.08.22"]
[WhiteClock "0:00:07"]
[BlackClock "0:00:00"]
[Board "98"]

1. e4 {[%clk 0:03:00]}  e5 {[%clk 0:02:59]} 2. Nf3 {[%clk 0:03:00]}  Nc6 {[%clk 0:02:59]} 3. Bc4 {[%clk 0:03:01]}  Nf6 {[%clk 0:02:59]} 4. d3 {[%clk 0:03:01]}  Bc5 {[%clk 0:02:58]} 5. O-O {[%clk 0:03:02]}  d6 {[%clk 0:02:59]} 6. c3 {[%clk 0:03:03]}  a6 {[%clk 0:02:58]} 7. Bb3 {[%clk 0:03:03]}  O-O {[%clk 0:02:58]} 8. Nbd2 {[%clk 0:03:04]}  Ba7 {[%clk 0:02:57]} 9. h3 {[%clk 0:03:04]}  h6 {[%clk 0:02:56]} 10. Re1 {[%clk 0:03:05]}  Re8 {[%clk 0:02:56]} 11. Nf1 {[%clk 0:03:06]}  Be6 {[%clk 0:02:56]} 12. Bc2 {[%clk 0:03:06]}  d5 {[%clk 0:02:50]} 13. Qe2 {[%clk 0:03:05]}  dxe4 {[%clk 0:02:49]} 14. dxe4 {[%clk 0:03:05]}  Qe7 {[%clk 0:02:47]} 15. Ng3 {[%clk 0:03:05]}  Rad8 {[%clk 0:02:47]} 16. Nh4 {[%clk 0:03:03]}  Qf8 {[%clk 0:02:25]} 17. Qf3 {[%clk 0:03:02]}  Nd7 {[%clk 0:02:17]} 18. Nhf5 {[%clk 0:03:00]}  Kh7 {[%clk 0:02:07]} 19. Nh5 {[%clk 0:01:59]}  Bxf5 {[%clk 0:02:05]} 20. exf5 {[%clk 0:01:51]}  f6 {[%clk 0:02:03]} 21. Qg4 {[%clk 0:01:48]}  Ne7 {[%clk 0:01:55]} 22. Bd2 {[%clk 0:01:37]}  Nc5 {[%clk 0:01:54]} 23. Be3 {[%clk 0:01:36]}  Bb6 {[%clk 0:01:48]} 24. a4 {[%clk 0:01:34]}  Nd3 {[%clk 0:01:45]} 25. Bxd3 {[%clk 0:01:29]}  Rxd3 {[%clk 0:01:44]} 26. Qe4 {[%clk 0:01:14]}  Red8 {[%clk 0:01:36]} 27. Bxb6 {[%clk 0:01:11]}  cxb6 {[%clk 0:01:35]} 28. Qxb7 {[%clk 0:01:11]}  Nxf5 {[%clk 0:01:29]} 29. Qe4 {[%clk 0:01:04]}  g6 {[%clk 0:01:21]} 30. Ng3 {[%clk 0:00:36]}  Nxg3 {[%clk 0:01:20]} 31. fxg3 {[%clk 0:00:37]}  Qc5+ {[%clk 0:01:10]} 32. Kh2 {[%clk 0:00:37]}  Qf2 {[%clk 0:01:11]} 33. g4 {[%clk 0:00:20]}  Kg7 {[%clk 0:00:39]} 34. Rf1 {[%clk 0:00:17]}  Qg3+ {[%clk 0:00:35]} 35. Kh1 {[%clk 0:00:17]}  Qh4 {[%clk 0:00:31]} 36. Kh2 {[%clk 0:00:11]}  Qg3+ {[%clk 0:00:30]} 37. Kh1 {[%clk 0:00:12]}  Qh4 {[%clk 0:00:31]} 38. Rf3 {[%clk 0:00:08]}  Rd2 {[%clk 0:00:25]} 39. Raf1 {[%clk 0:00:06]}  R8d6 {[%clk 0:00:23]} 40. Qb7+ {[%clk 0:00:05]}  Rd7 {[%clk 0:00:23]} 41. Qxb6 {[%clk 0:00:05]}  R2d6 {[%clk 0:00:21]} 42. Qc5 {[%clk 0:00:05]}  e4 {[%clk 0:00:18]} 43. Re3 {[%clk 0:00:03]}  Rd1 {[%clk 0:00:13]} 44. Rxd1 {[%clk 0:00:03]}  Rxd1+ {[%clk 0:00:13]} 45. Kh2 {[%clk 0:00:04]}  Rd7 {[%clk 0:00:10]} 46. Rxe4 {[%clk 0:00:03]}  f5 {[%clk 0:00:08]} 47. Qe5+ {[%clk 0:00:01]}  Kh7 {[%clk 0:00:06]} 48. gxf5 {[%clk 0:00:02]}  Qf2 {[%clk 0:00:04]} 49. fxg6+ {[%clk 0:00:03]}  Kxg6 {[%clk 0:00:03]} 50. Qe6+ {[%clk 0:00:03]}  Qf6 {[%clk 0:00:02]} 51. Qxd7 {[%clk 0:00:04]}  Qg5 {[%clk 0:00:02]} 52. Rg4 {[%clk 0:00:04]}  Qxg4 {[%clk 0:00:02]} 53. Qxg4+ {[%clk 0:00:04]}  Kf6 {[%clk 0:00:02]} 54. Qc4 {[%clk 0:00:05]}  Kf5 {[%clk 0:00:02]} 55. Qxa6 {[%clk 0:00:06]}  Kf4 {[%clk 0:00:00]} 56. Qb5 {[%clk 0:00:07]} 1-0


[Site "https://www.chess.com"]

[Event "Titled Tuesday Blitz August 22 Late 2023"]
[White "TrashinalMaster"]
[Black "Pham, Le Thao Nguyen"]
[BlackFideId "12401226"]
[WhiteElo "2173"]
[BlackElo "2660"]
[Result "0-1"]
[Round "2"]
[TimeControl "180+1"]
[Date "2023.08.22"]
[WhiteClock "0:01:01"]
[BlackClock "0:00:25"]
[Board "99"]

1. e4 {[%clk 0:03:00]}  c5 {[%clk 0:02:55]} 2. Nf3 {[%clk 0:03:01]}  e6 {[%clk 0:02:55]} 3. d3 {[%clk 0:02:59]}  Nc6 {[%clk 0:02:45]} 4. Nbd2 {[%clk 0:03:00]}  d6 {[%clk 0:02:36]} 5. g3 {[%clk 0:03:01]}  g6 {[%clk 0:02:36]} 6. Bg2 {[%clk 0:03:02]}  Bg7 {[%clk 0:02:37]} 7. O-O {[%clk 0:03:01]}  Nge7 {[%clk 0:02:37]} 8. a4 {[%clk 0:02:59]}  O-O {[%clk 0:02:36]} 9. Re1 {[%clk 0:02:59]}  Rb8 {[%clk 0:02:32]} 10. Nc4 {[%clk 0:02:56]}  b6 {[%clk 0:02:32]} 11. Bf4 {[%clk 0:02:54]}  e5 {[%clk 0:02:26]} 12. Bd2 {[%clk 0:02:54]}  h6 {[%clk 0:02:21]} 13. Qc1 {[%clk 0:02:53]}  Kh7 {[%clk 0:02:20]} 14. h4 {[%clk 0:02:51]}  Nd4 {[%clk 0:02:02]} 15. Nxd4 {[%clk 0:02:45]}  cxd4 {[%clk 0:01:41]} 16. Bb4 {[%clk 0:02:45]}  Be6 {[%clk 0:01:31]} 17. Bxd6 {[%clk 0:02:42]}  Rc8 {[%clk 0:01:30]} 18. Bxe5 {[%clk 0:02:37]}  Bxc4 {[%clk 0:01:27]} 19. Bxg7 {[%clk 0:02:36]}  Kxg7 {[%clk 0:01:28]} 20. dxc4 {[%clk 0:02:36]}  Rxc4 {[%clk 0:01:28]} 21. Qd2 {[%clk 0:02:32]}  Qc7 {[%clk 0:01:18]} 22. Rad1 {[%clk 0:02:23]}  Rd8 {[%clk 0:01:16]} 23. c3 {[%clk 0:02:18]}  Nc6 {[%clk 0:00:50]} 24. Bf1 {[%clk 0:02:15]}  dxc3 {[%clk 0:00:44]} 25. Qc2 {[%clk 0:02:15]}  Rxd1 {[%clk 0:00:36]} 26. Rxd1 {[%clk 0:02:13]}  Nb4 {[%clk 0:00:33]} 27. Qb3 {[%clk 0:02:09]}  c2 {[%clk 0:00:32]} 28. Rc1 {[%clk 0:02:00]}  Rd4 {[%clk 0:00:32]} 29. f3 {[%clk 0:01:41]}  Qc5 {[%clk 0:00:32]} 30. Kh1 {[%clk 0:01:01]}  Rd2 {[%clk 0:00:25]} 0-1


[Site "https://www.chess.com"]